fUSD/lending_fUSD_20260307
["ID","MTS","AMOUNT","RATE_DAILY","PERIOD"]
[407870521,1772859038073,-3424.17829503,0.00019899,2]
[407870522,1772859038082,-3424.17829503,0.00019899,2]
[407870523,1772859038091,-3424.17829503,0.000199,2]
[407870524,1772859038100,-1088.66773329,0.000199,2]
[407870525,1772859038109,-5000.0,0.000199,2]
[407870526,1772859038118,-1300.0,0.000199,7]
[407870527,1772859038127,-25000.0,0.000199,3]
[407870528,1772859038136,-3424.17829503,0.000199,2]
[407870529,1772859038146,-1469.0,0.000199,2]
[407870530,1772859038155,-1056.224958,0.00019949,7]
[407870531,1772859038163,-1639.06,0.00019964,2]
[407870532,1772859038172,-500.0,0.00019972,2]
[407870533,1772859038181,-500.0,0.00019972,2]
[407870534,1772859038194,-500.0,0.00019972,2]
[407870535,1772859038203,-500.0,0.00019972,2]
[407870536,1772859038212,-500.0,0.00019972,2]
[407870537,1772859038221,-548.75345228,0.00019973,2]
[407870538,1772859038230,-200.0,0.00019975,2]
[407870539,1772859038239,-168.0,0.00019988,2]
[407870540,1772859038248,-234112.6389123,0.00019997,2]
[407870541,1772859038258,-17341.160036,0.00019997,2]
[407870542,1772859038268,-151.0,0.00019997,2]
[407870543,1772859038276,-500.0,0.00019998,2]
[407870544,1772859038286,-500.0,0.00019998,2]
[407870545,1772859038295,-500.0,0.00019998,2]
[407870546,1772859038304,-500.0,0.00019998,2]
[407870547,1772859038315,-3000.0,0.00019999,2]
[407870548,1772859038326,-3000.0,0.00019999,7]
[407870549,1772859038336,-256.75572098,0.00019999,2]
[407870550,1772859038348,-1838.0,0.0002,2]
[407870551,1772859038362,-3000.0,0.0002,7]
[407870552,1772859038372,-4838773.46011599,0.0002,2]
[407870553,1772859038386,-10872.26460037,0.0002,2]
[407870555,1772859040275,-845.39777926,0.0002,2]
[407870562,1772859045433,-902.4970347,0.00018882,2]
[407870563,1772859045446,-5088.5029653,0.00018882,2]
[407870564,1772859045457,-28898.9970347,0.0002,2]
[407870585,1772860013135,-205.00535372,0.00013333,2]
[407870586,1772860159082,-514.0,0.00013333,2]
[407870587,1772860159103,-200.0,0.00014235,2]
[407870593,1772860231629,-165.11,0.00014718,2]
[407870594,1772860231639,-250.0,0.00014859,2]
[407870595,1772860231649,-544.44089677,0.00015,3]
[407870596,1772860231658,-250.0,0.00015,2]
[407870597,1772860231667,-250.0,0.00015408,2]
[407870598,1772860231676,-163.68,0.00016123,2]
[407870599,1772860231685,-250.0,0.00016189,2]
[407870600,1772860231695,-46406.5319,0.000162,2]
[407870601,1772860231705,-550.0,0.00016299,2]
[407870602,1772860231715,-1299.72,0.00016393,2]
[407870603,1772860231724,-2464.75712918,0.00016393,2]
[407870604,1772860231736,-1626.74287082,0.00016393,2]
[407870605,1772860231745,-163.68,0.00016393,2]
[407870606,1772860231755,-1000.0,0.00016452,2]
[407870607,1772860231764,-310.7300466,0.00016485,2]
[407870608,1772860231773,-163.68,0.00016663,2]
[407870609,1772860231783,-514.0,0.00016666,4]
[407870611,1772860231792,-1000.0,0.00016726,2]
[407870612,1772860231801,-500.0,0.00016763,2]
[407870614,1772860231811,-159.40647673,0.00016763,2]
[407870615,1772860231821,-228.36,0.00016832,2]
[407870616,1772860231830,-163.68,0.00016933,2]
[407870617,1772860231839,-9000.0,0.00017,2]
[407870618,1772860231848,-1000.0,0.00017,2]
[407870619,1772860231858,-300.0,0.00017,2]
[407870620,1772860231867,-163.0,0.00017,14]
[407870621,1772860231877,-500.0,0.00017013,2]
[407870622,1772860231886,-200.0,0.00017123,2]
[407870623,1772860231895,-163.68,0.00017203,2]
[407870624,1772860231904,-500.0,0.00017264,2]
[407870625,1772860231913,-1001.7499,0.00017274,3]
[407870626,1772860231923,-1852.42,0.00017276,2]
[407870627,1772860231936,-385.0,0.00017424,2]
[407870628,1772860231945,-163.69,0.00017473,2]
[407870629,1772860231955,-1000.0,0.00017548,5]
[407870630,1772860231964,-152.0,0.0001759,3]
[407870631,1772860231974,-3000.0,0.00017808,7]
[407870632,1772860231983,-1500.0,0.00017808,7]
[407870633,1772860231992,-3000.0,0.00017808,7]
[407870634,1772860232002,-9000.0,0.00018,2]
[407870635,1772860232011,-451.3,0.00018281,2]
[407870636,1772860232020,-152.0,0.00018391,4]
[407870637,1772860232030,-500.0,0.00018507,2]
[407870638,1772860232039,-150.0,0.00018507,2]
[407870639,1772860232049,-150.0,0.00018507,2]
[407870640,1772860232058,-150.0,0.00018507,2]
[407870641,1772860232067,-707.0,0.00018507,2]
[407870642,1772860232076,-500.0,0.00018507,2]
[407870643,1772860232086,-500.0,0.00018507,2]
[407870644,1772860232095,-524.0,0.00018507,2]
[407870645,1772860232105,-2027.0,0.00018507,2]
[407870646,1772860232114,-999.0,0.00018507,2]
[407870647,1772860232123,-500.0,0.00018507,2]
[407870648,1772860232133,-500.0,0.00018507,2]
[407870649,1772860232142,-500.0,0.00018507,2]
[407870650,1772860232152,-707.69636431,0.00018507,2]
[407870651,1772860232163,-1254.41808677,0.00018507,2]
[407870652,1772860232449,-483.88554892,0.00018507,2]
[407870653,1772860232459,-597.0,0.00018507,2]
[407870654,1772860232469,-1572.0,0.00018507,2]
[407870655,1772860232478,-562.0,0.00018507,2]
[407870656,1772860232488,-500.0,0.00018507,2]
[407870657,1772860232497,-563.0,0.00018507,2]
[407870658,1772860232507,-504.99757389,0.00018562,2]
[407870659,1772860232518,-206.05910409,0.00018562,2]
[407870660,1772860232530,-707.0,0.00018562,2]
[407870661,1772860232540,-500.0,0.00018562,2]
[407870662,1772860232550,-500.0,0.00018562,2]
[407870663,1772860232559,-524.0,0.00018562,2]
[407870664,1772860232570,-2027.0,0.00018562,2]
[407870665,1772860232579,-999.0,0.00018562,2]
[407870666,1772860232589,-500.0,0.00018562,2]
[407870667,1772860232598,-500.94808155,0.00018562,2]
[407870668,1772860232607,-500.0,0.00018562,2]
[407870669,1772860232617,-2446.0,0.00018562,2]
[407870670,1772860232626,-597.0,0.00018562,2]
[407870671,1772860232637,-1572.0,0.00018562,2]
[407870672,1772860232646,-562.0,0.00018562,2]
[407870673,1772860232655,-500.0,0.00018562,2]
[407870674,1772860232664,-563.0,0.00018562,2]
[407870675,1772860232673,-707.0,0.00018617,2]
[407870676,1772860232683,-500.0,0.00018617,2]
[407870677,1772860232692,-500.0,0.00018617,2]
[407870678,1772860232703,-524.0,0.00018617,2]
[407870679,1772860232712,-2027.0,0.00018617,2]
[407870680,1772860232721,-999.0,0.00018617,2]
[407870681,1772860232730,-500.0,0.00018617,2]
[407870682,1772860232739,-500.0,0.00018617,2]
[407870683,1772860232751,-2446.0,0.00018617,2]
[407870684,1772860232761,-597.0,0.00018617,2]
[407870685,1772860232771,-1572.0,0.00018617,2]
[407870686,1772860232780,-562.0,0.00018617,2]
[407870687,1772860232789,-500.0,0.00018617,2]
[407870688,1772860232799,-563.0,0.00018617,2]
[407870689,1772860232808,-707.0,0.00018671,2]
[407870690,1772860232817,-500.0,0.00018671,2]
[407870691,1772860232827,-164.64776858,0.00018671,2]
[407870692,1772860237773,-335.35223142,0.00018671,2]
[407870693,1772860237784,-524.0,0.00018671,2]
[407870694,1772860237796,-2027.0,0.00018671,2]
[407870695,1772860237809,-999.0,0.00018671,2]
[407870696,1772860237821,-500.0,0.00018671,2]
[407870697,1772860237833,-500.0,0.00018671,2]
[407870698,1772860237845,-2446.0,0.00018671,2]
[407870699,1772860237856,-597.0,0.00018671,2]
[407870700,1772860237867,-1572.0,0.00018671,2]
[407870701,1772860237878,-562.0,0.00018671,2]
[407870702,1772860237889,-500.0,0.00018671,2]
[407870703,1772860237900,-563.0,0.00018671,2]
[407870704,1772860237911,-500.0,0.00018726,2]
[407870705,1772860237922,-500.0,0.00018726,2]
[407870706,1772860237933,-500.0,0.00018726,2]
[407870707,1772860237948,-214.70164119,0.00018726,2]
[407870708,1772860237960,-500.0,0.00018726,2]
[407870709,1772860237972,-500.0,0.00018726,2]
[407870710,1772860237984,-150.0,0.00018726,2]
[407870711,1772860237996,-500.0,0.00018726,2]
[407870712,1772860238007,-150.0,0.00018726,2]
[407870713,1772860238018,-500.0,0.00018726,2]
[407870714,1772860238030,-150.0,0.00018726,2]
[407870715,1772860238040,-500.0,0.00018726,2]
[407870716,1772860238057,-707.0,0.00018726,2]
[407870717,1772860238067,-500.0,0.00018726,2]
[407870718,1772860238077,-524.0,0.00018726,2]
[407870719,1772860238091,-2027.0,0.00018726,2]
[407870720,1772860238101,-999.0,0.00018726,2]
[407870721,1772860238111,-500.0,0.00018726,2]
[407870722,1772860238121,-500.0,0.00018726,2]
[407870723,1772860238132,-2446.0,0.00018726,2]
[407870724,1772860238142,-597.0,0.00018726,2]
[407870725,1772860238154,-1572.0,0.00018726,2]
[407870726,1772860238164,-562.0,0.00018726,2]
[407870727,1772860238176,-500.0,0.00018726,2]
[407870728,1772860238186,-563.0,0.00018726,2]
[407870729,1772860238196,-1508.07028832,0.00018736,2]
[407870730,1772860238206,-500.0,0.00018781,2]
[407870731,1772860238216,-500.0,0.00018781,2]
[407870732,1772860238226,-500.0,0.00018781,2]
[407870733,1772860238237,-500.0,0.00018781,2]
[407870734,1772860238249,-500.0,0.00018781,2]
[407870735,1772860238259,-150.0,0.00018781,2]
[407870736,1772860238269,-500.0,0.00018781,2]
[407870737,1772860238279,-150.0,0.00018781,2]
[407870738,1772860238289,-500.0,0.00018781,2]
[407870739,1772860238301,-228.41522971,0.00018781,2]
[407870740,1772860238311,-500.0,0.00018781,2]
[407870741,1772860238322,-707.0,0.00018781,2]
[407870742,1772860238332,-500.0,0.00018781,2]
[407870743,1772860238342,-524.0,0.00018781,2]
[407870744,1772860238353,-2027.0,0.00018781,2]
[407870745,1772860238364,-999.0,0.00018781,2]
[407870746,1772860238374,-500.0,0.00018781,2]
[407870747,1772860238385,-500.0,0.00018781,2]
[407870748,1772860238397,-2446.0,0.00018781,2]
[407870749,1772860238407,-597.0,0.00018781,2]
[407870750,1772860238418,-1572.0,0.00018781,2]
[407870751,1772860238430,-562.0,0.00018781,2]
[407870752,1772860238443,-500.0,0.00018781,2]
[407870753,1772860238454,-563.0,0.00018781,2]
[407870754,1772860238468,-500.62265494,0.00018836,2]
[407870755,1772860238478,-500.0,0.00018836,2]
[407870756,1772860238488,-500.0,0.00018836,2]
[407870757,1772860238498,-500.0,0.00018836,2]
[407870758,1772860238509,-500.0,0.00018836,2]
[407870759,1772860238525,-161.32097098,0.00018836,2]
[407870760,1772860238535,-500.85972923,0.00018836,2]
[407870761,1772860238546,-150.34450835,0.00018836,2]
[407870762,1772860238557,-500.0,0.00018836,2]
[407870763,1772860238567,-500.0,0.00018836,2]
[407870764,1772860238577,-707.0,0.00018836,2]
[407870765,1772860238588,-500.0,0.00018836,2]
[407870766,1772860238598,-524.0,0.00018836,2]
[407870767,1772860238608,-2027.0,0.00018836,2]
[407870768,1772860238619,-999.0,0.00018836,2]
[407870769,1772860238629,-554.61846768,0.00018836,2]
[407870770,1772860238639,-500.0,0.00018836,2]
[407870771,1772860238649,-2446.0,0.00018836,2]
[407870772,1772860238661,-597.0,0.00018836,2]
[407870773,1772860238671,-1572.0,0.00018836,2]
[407870774,1772860238685,-562.0,0.00018836,2]
[407870775,1772860238695,-500.0,0.00018836,2]
[407870776,1772860238705,-563.0,0.00018836,2]
[407870777,1772860238715,-1508.07028831,0.00018865,2]
[407870778,1772860238724,-500.0,0.00018873,2]
[407870779,1772860238734,-504.59959812,0.00018873,2]
[407870780,1772860238744,-150.0,0.00018882,2]
[407870781,1772860238754,-619.0,0.00018882,2]
[407870782,1772860238765,-1042.0,0.00018882,2]
[407870783,1772860238774,-3503.0,0.00018882,2]
[407870784,1772860238784,-1279.0,0.00018882,2]
[407870785,1772860238795,-922.0,0.00018882,2]
[407870786,1772860238804,-1212.0,0.00018882,2]
[407870787,1772860238814,-500.0,0.0001889,2]
[407870788,1772860238824,-500.0,0.0001889,2]
[407870789,1772860238834,-500.0,0.0001889,2]
[407870790,1772860238843,-500.0,0.0001889,2]
[407870791,1772860238854,-500.0,0.0001889,2]
[407870792,1772860238867,-707.0,0.00018891,2]
[407870793,1772860238877,-500.0,0.00018891,2]
[407870794,1772860238887,-629.44184441,0.00018891,2]
[407870795,1772860238898,-524.0,0.00018891,2]
[407870796,1772860238908,-2027.0,0.00018891,2]
[407870797,1772860238918,-999.0,0.00018891,2]
[407870798,1772860238928,-500.0,0.00018891,2]
[407870799,1772860238938,-2446.0,0.00018891,2]
[407870800,1772860238948,-597.0,0.00018891,2]
[407870801,1772860238958,-1572.0,0.00018891,2]
[407870802,1772860238968,-562.0,0.00018891,2]
[407870803,1772860238979,-500.0,0.00018891,2]
[407870804,1772860238989,-563.0,0.00018891,2]
[407870805,1772860239000,-1200.0,0.000189,6]
[407870806,1772860239010,-3000.0,0.00018904,7]
[407870807,1772860239020,-1500.0,0.00018904,7]
[407870808,1772860239030,-3000.0,0.00018904,7]
[407870809,1772860239040,-500.0,0.00018945,2]
[407870810,1772860239054,-179.48565848,0.00018945,2]
[407870811,1772860239070,-500.0,0.00018945,2]
[407870812,1772860239080,-500.0,0.00018945,2]
[407870813,1772860239090,-358.71326845,0.00018945,2]
[407870814,1772860239100,-707.0,0.00018945,2]
[407870815,1772860239110,-500.0,0.00018945,2]
[407870816,1772860239120,-524.0,0.00018945,2]
[407870817,1772860239131,-2027.0,0.00018945,2]
[407870818,1772860239141,-999.0,0.00018945,2]
[407870819,1772860239151,-500.0,0.00018945,2]
[407870820,1772860239162,-2446.0,0.00018945,2]
[407870821,1772860239173,-597.0,0.00018945,2]
[407870822,1772860239183,-1572.0,0.00018945,2]
[407870823,1772860239193,-562.0,0.00018945,2]
[407870824,1772860239203,-500.0,0.00018945,2]
[407870825,1772860239213,-563.0,0.00018945,2]
[407870826,1772860239223,-1508.07028831,0.00018995,2]
[407870827,1772860239233,-431.65352128,0.00018999,2]
[407870828,1772860239243,-155.05699457,0.00018999,2]
[407870829,1772860239252,-693.3919763,0.00018999,2]
[407870830,1772860239262,-500.0,0.00019,2]
[407870831,1772860239273,-181.22605719,0.00019,2]
[407870832,1772860239283,-500.0,0.00019,2]
[407870833,1772860239294,-785.82331,0.00019,2]
[407870834,1772860239305,-2500.0,0.00019,2]
[407870835,1772860239315,-707.0,0.00019,2]
[407870836,1772860239325,-500.0,0.00019,2]
[407870837,1772860239334,-524.0,0.00019,2]
[407870838,1772860239344,-2027.0,0.00019,2]
[407870839,1772860239353,-999.0,0.00019,2]
[407870840,1772860239363,-500.0,0.00019,2]
[407870841,1772860239372,-2446.0,0.00019,2]
[407870842,1772860239383,-597.0,0.00019,2]
[407870843,1772860239393,-1572.0,0.00019,2]
[407870844,1772860239402,-562.0,0.00019,2]
[407870845,1772860239412,-500.0,0.00019,2]
[407870846,1772860239422,-563.0,0.00019,2]
[407870847,1772860239434,-160.0,0.00019007,2]
[407870848,1772860239444,-3597.35899074,0.00019009,2]
[407870849,1772860239453,-719.04747942,0.00019054,2]
[407870850,1772860239463,-500.0,0.00019055,2]
[407870851,1772860239474,-500.0,0.00019055,2]
[407870852,1772860239484,-707.0,0.00019055,2]
[407870853,1772860239494,-500.0,0.00019055,2]
[407870854,1772860239503,-524.0,0.00019055,2]
[407870855,1772860239513,-2027.0,0.00019055,2]
[407870856,1772860239523,-999.0,0.00019055,2]
[407870857,1772860239536,-500.0,0.00019055,2]
[407870858,1772860239547,-2446.0,0.00019055,2]
[407870859,1772860239560,-597.0,0.00019055,2]
[407870860,1772860239570,-1572.0,0.00019055,2]
[407870861,1772860239580,-562.0,0.00019055,2]
[407870862,1772860239589,-273.854613,0.00019055,2]
[407870863,1772860239599,-563.0,0.00019055,2]
[407870864,1772860239612,-2460.0,0.00019057,2]
[407870865,1772860239621,-5991.0,0.00019057,2]
[407870866,1772860239632,-272.06935217,0.00019099,2]
[407870867,1772860239642,-500.0,0.00019099,2]
[407870868,1772860239654,-500.0,0.00019099,2]
[407870869,1772860239663,-500.0,0.00019099,2]
[407870870,1772860239674,-500.0,0.00019099,2]
[407870871,1772860239684,-500.0,0.00019099,2]
[407870872,1772860239694,-500.0,0.00019099,2]
[407870873,1772860239703,-500.0,0.00019099,2]
[407870874,1772860239713,-500.0,0.00019099,2]
[407870875,1772860239723,-500.0,0.00019099,2]
[407870876,1772860239733,-150.0,0.00019099,2]
[407870877,1772860239742,-609034.7398,0.000191,2]
[407870878,1772860239752,-151.0,0.00019105,2]
[407870879,1772860239762,-3597.35899069,0.00019108,2]
[407870880,1772860239772,-745.65223616,0.00019109,2]
[407870881,1772860239782,-500.0,0.0001911,2]
[407870883,1772860239793,-500.0,0.0001911,2]
[407870885,1772860239803,-707.0,0.0001911,2]
[407870887,1772860239813,-556.91112057,0.0001911,2]
[407870890,1772860239831,-524.0,0.0001911,2]
[407870892,1772860239842,-2027.0,0.0001911,2]
[407870894,1772860239853,-999.0,0.0001911,2]
[407870896,1772860239863,-500.0,0.0001911,2]
[407870898,1772860239874,-2446.0,0.0001911,2]
[407870900,1772860239885,-597.0,0.0001911,2]
[407870901,1772860239895,-1572.0,0.0001911,2]
[407870902,1772860239905,-562.0,0.0001911,2]
[407870903,1772860239915,-563.0,0.0001911,2]
[407870904,1772860239925,-1508.07028831,0.00019124,2]
[407870905,1772860239935,-500.0,0.00019126,7]
[407870906,1772860239945,-151.12456673,0.00019126,7]
[407870907,1772860239955,-500.0,0.00019126,7]
[407870908,1772860239965,-168.0,0.00019162,2]
[407870909,1772860239976,-773.2413689,0.00019164,2]
[407870910,1772860239986,-500.0,0.00019164,2]
[407870911,1772860239998,-500.0,0.00019164,2]
[407870912,1772860240009,-707.0,0.00019165,2]
[407870913,1772860240019,-524.0,0.00019165,2]
[407870914,1772860240029,-2027.0,0.00019165,2]
[407870915,1772860240041,-999.0,0.00019165,2]
[407870916,1772860240051,-500.0,0.00019165,2]
[407870917,1772860240062,-2446.0,0.00019165,2]
[407870918,1772860240072,-597.0,0.00019165,2]
[407870919,1772860240082,-1572.0,0.00019165,2]
[407870920,1772860240092,-562.0,0.00019165,2]
[407870921,1772860240101,-563.0,0.00019165,2]
[407870922,1772860240111,-759.19,0.00019178,30]
[407870923,1772860240120,-500.0,0.00019181,7]
[407870924,1772860240130,-500.0,0.00019181,7]
[407870925,1772860240140,-152.0,0.00019192,5]
[407870926,1772860240149,-2000.0,0.000192,2]
[407870927,1772860240159,-1000.0,0.000192,2]
[407870928,1772860240168,-2400.0,0.000192,7]
[407870929,1772860240178,-3597.35899069,0.00019207,2]
[407870930,1772860240188,-801.85129955,0.00019219,2]
[407870931,1772860240197,-500.0,0.00019219,2]
[407870932,1772860240207,-194.737577,0.00019219,2]
[407870933,1772860240217,-707.0,0.00019219,2]
[407870934,1772860240227,-524.0,0.00019219,2]
[407870935,1772860240236,-2027.0,0.00019219,2]
[407870936,1772860240246,-999.0,0.00019219,2]
[407870937,1772860240256,-500.0,0.00019219,2]
[407870938,1772860240268,-2446.0,0.00019219,2]
[407870939,1772860240279,-597.0,0.00019219,2]
[407870940,1772860240289,-1572.0,0.00019219,2]
[407870941,1772860240300,-562.0,0.00019219,2]
[407870942,1772860240311,-563.0,0.00019219,2]
[407870943,1772860240322,-500.0,0.00019236,7]
[407870944,1772860240334,-500.0,0.00019236,7]
[407870945,1772860240346,-1508.07028831,0.00019253,2]
[407870946,1772860240357,-500.0,0.00019274,2]
[407870947,1772860240367,-831.51979763,0.00019274,2]
[407870948,1772860240377,-707.0,0.00019274,2]
[407870949,1772860240387,-524.0,0.00019274,2]
[407870950,1772860240397,-2027.0,0.00019274,2]
[407870951,1772860240406,-999.0,0.00019274,2]
[407870952,1772860240416,-248.35000695,0.00019274,2]
[407870953,1772860240426,-2446.0,0.00019274,2]
[407870954,1772860240436,-597.0,0.00019274,2]
[407870955,1772860240447,-1572.0,0.00019274,2]
[407870956,1772860240456,-562.0,0.00019274,2]
[407870957,1772860240466,-563.0,0.00019274,2]
[407870958,1772860240475,-500.0,0.0001929,7]
[407870959,1772860240487,-500.0,0.0001929,7]
[407870960,1772860240496,-3600.0,0.000193,7]
[407870961,1772860240506,-3597.35899069,0.00019306,2]
[407870962,1772860240516,-500.0,0.00019329,2]
[407870963,1772860240529,-707.0,0.00019329,2]
[407870964,1772860240539,-524.0,0.00019329,2]
[407870965,1772860240549,-2027.0,0.00019329,2]
[407870966,1772860240559,-999.0,0.00019329,2]
[407870967,1772860240569,-2446.0,0.00019329,2]
[407870969,1772860240579,-597.0,0.00019329,2]
[407870970,1772860240590,-1572.0,0.00019329,2]
[407870971,1772860240601,-562.0,0.00019329,2]
[407870972,1772860240611,-563.0,0.00019329,2]
[407870973,1772860240621,-862.28603014,0.00019329,2]
[407870974,1772860240632,-5000.0,0.00019333,2]
[407870975,1772860240642,-500.0,0.00019345,7]
[407870976,1772860240652,-500.0,0.00019345,7]
[407870977,1772860240661,-1508.07028831,0.00019383,2]
[407870978,1772860240670,-500.0,0.00019384,2]
[407870979,1772860240680,-707.0,0.00019384,2]
[407870980,1772860240689,-524.0,0.00019384,2]
[407870981,1772860240700,-2027.0,0.00019384,2]
[407870982,1772860240710,-999.0,0.00019384,2]
[407870983,1772860240727,-2446.0,0.00019384,2]
[407870984,1772860240737,-597.0,0.00019384,2]
[407870985,1772860240746,-1572.0,0.00019384,2]
[407870986,1772860240756,-562.0,0.00019384,2]
[407870987,1772860240767,-563.0,0.00019384,2]
[407870988,1772860240776,-894.19061326,0.00019384,2]
[407870989,1772860240786,-312.91218141,0.00019391,2]
[407870990,1772860240796,-500.0,0.000194,7]
[407870991,1772860240806,-500.0,0.000194,7]
[407870992,1772860240815,-4800.0,0.000194,7]
[407870993,1772860240824,-3597.35899069,0.00019405,2]
[407870994,1772860240834,-506.03417329,0.00019421,2]
[407870995,1772860240843,-236.22884881,0.00019438,2]
[407870996,1772860240853,-707.0,0.00019439,2]
[407870997,1772860240862,-524.0,0.00019439,2]
[407870998,1772860240873,-999.0,0.00019439,2]
[407870999,1772860240882,-2027.0,0.00019439,2]
[407871000,1772860240892,-597.0,0.00019439,2]
[407871001,1772860240901,-2446.0,0.00019439,2]
[407871002,1772860240910,-1572.0,0.00019439,2]
[407871003,1772860240920,-562.0,0.00019439,2]
[407871004,1772860240930,-563.0,0.00019439,2]
[407871005,1772860240939,-927.27566595,0.00019439,2]
[407871006,1772860240948,-500.0,0.00019455,7]
[407871007,1772860240958,-500.0,0.00019455,7]
[407871008,1772860240967,-707.0,0.00019493,2]
[407871009,1772860240977,-524.0,0.00019493,2]
[407871010,1772860240986,-2027.0,0.00019493,2]
[407871011,1772860240996,-999.0,0.00019493,2]
[407871012,1772860241006,-597.0,0.00019493,2]
[407871013,1772860241015,-2446.0,0.00019493,2]
[407871014,1772860241025,-1572.0,0.00019493,2]
[407871015,1772860241034,-562.0,0.00019493,2]
[407871016,1772860241045,-563.0,0.00019493,2]
[407871017,1772860241054,-961.58486559,0.00019494,2]
[407871018,1772860241063,-6000.0,0.000195,7]
[407871019,1772860241073,-3597.35899069,0.00019504,2]
[407871020,1772860241082,-500.0,0.0001951,7]
[407871021,1772860241092,-400.0,0.0001951,7]
[407871022,1772860241101,-1508.07028831,0.00019512,2]
[407871023,1772860241110,-312.91218141,0.00019518,2]
[407871024,1772860241120,-707.0,0.00019548,2]
[407871025,1772860241130,-524.0,0.00019548,2]
[407871026,1772860241139,-2027.0,0.00019548,2]
[407871027,1772860241148,-999.0,0.00019548,2]
[407871028,1772860241158,-597.0,0.00019548,2]
[407871029,1772860241167,-2446.0,0.00019548,2]
[407871030,1772860241177,-1572.0,0.00019548,2]
[407871031,1772860241186,-562.0,0.00019548,2]
[407871032,1772860241197,-563.0,0.00019548,2]
[407871033,1772860241206,-997.16350561,0.00019549,2]
[407871034,1772860241215,-500.0,0.00019564,7]
[407871035,1772860241225,-150.0,0.00019582,2]
[407871036,1772860241234,-1183.0,0.00019582,2]
[407871037,1772860241243,-1473.0,0.000196,2]
[407871038,1772860241253,-1938.38214896,0.000196,2]
[407871039,1772860241262,-1200.0,0.000196,7]
[407871040,1772860241272,-707.0,0.00019603,2]
[407871041,1772860241281,-2027.0,0.00019603,2]
[407871042,1772860241291,-999.0,0.00019603,2]
[407871043,1772860241302,-524.0,0.00019603,2]
[407871044,1772860241311,-597.0,0.00019603,2]
[407871045,1772860241321,-2446.0,0.00019603,2]
[407871046,1772860241330,-1572.0,0.00019603,2]
[407871047,1772860241339,-562.0,0.00019603,2]
[407871048,1772860241348,-563.0,0.00019603,2]
[407871049,1772860241358,-3597.35899069,0.00019603,2]
[407871050,1772860241367,-500.0,0.00019619,7]
[407871051,1772860241377,-150.0,0.00019637,2]
[407871052,1772860241386,-1183.0,0.00019637,2]
[407871053,1772860241395,-3124.18,0.00019637,2]
[407871054,1772860241405,-3124.18,0.00019637,2]
[407871055,1772860241414,-3124.18,0.00019637,2]
[407871056,1772860241423,-3124.18,0.00019637,2]
[407871057,1772860241432,-5638.2,0.00019637,2]
[407871058,1772860241441,-1508.07028831,0.00019641,2]
[407871059,1772860241450,-312.91218141,0.00019645,2]
[407871060,1772860241460,-451.3,0.00019651,2]
[407871061,1772860241469,-707.0,0.00019658,2]
[407871062,1772860241478,-2027.0,0.00019658,2]
[407871063,1772860241487,-999.0,0.00019658,2]
[407871064,1772860241497,-524.0,0.00019658,2]
[407871065,1772860241507,-597.0,0.00019658,2]